fUST/lending_fUST_20260612
["ID","MTS","AMOUNT","RATE_DAILY","PERIOD"]
[424879028,1781231439000,-308.93,0.00025948,2]
[424879040,1781231439000,-246.56,0.00026849,2]
[424879041,1781231439000,-322.63938075,0.00027023,2]
[424879044,1781231439000,-246.56,0.00027123,2]
[424879046,1781231439000,-246.32221,0.00027259,2]
[424879047,1781231439000,-246.66,0.00027397,2]
[424879060,1781231439000,-246.32221,0.00030563,2]
[424879058,1781231439000,-245.68990045,0.0003,3]
[424879064,1781231439000,-3654.359,0.00031034,2]
[424879021,1781231439000,-246.56,0.00025205,2]
[424879084,1781231439000,-152.0,0.00032306,30]
[424879049,1781231439000,-246.32221,0.0002836,2]
[424879086,1781231439000,-322.63938072,0.00032542,2]
[424879073,1781231439000,-332.1265092,0.00032144,2]
[424879082,1781231439000,-152.0,0.00032241,30]
[424879071,1781231439000,-708.1580394,0.00032144,2]
[424879066,1781231439000,-188.862,0.00031034,2]
[424879069,1781231439000,-246.32221,0.00031664,2]
[424879054,1781231439000,-359.74817987,0.00029429,3]
[424879051,1781231439000,-322.63938072,0.00028863,2]
[424879056,1781231439000,-246.32221,0.00029461,2]
[424879053,1781231439000,-180.0,0.00029365,2]
[424879062,1781231439000,-322.63938072,0.00030702,2]
[424879068,1781231439000,-1858.791,0.00031034,2]
[424879232,1781231440000,-500.0,0.00035616,18]
[424879217,1781231440000,-749.48,0.00035616,18]
[424879219,1781231440000,-500.0,0.00035616,18]
[424879215,1781231440000,-500.0,0.00035616,18]
[424879230,1781231440000,-500.0,0.00035616,18]
[424879213,1781231440000,-500.0,0.00035616,18]
[424879257,1781231440000,-625.23,0.00035616,18]
[424879211,1781231440000,-500.0,0.00035616,18]
[424879210,1781231440000,-500.0,0.00035616,18]
[424879199,1781231440000,-500.0,0.00035616,18]
[424879208,1781231440000,-533.59000248,0.00035616,18]
[424879226,1781231440000,-500.0,0.00035616,18]
[424879197,1781231440000,-500.0,0.00035616,18]
[424879225,1781231440000,-500.0,0.00035616,18]
[424879228,1781231440000,-500.0,0.00035616,18]
[424879243,1781231440000,-500.0,0.00035616,18]
[424879236,1781231440000,-500.0,0.00035616,18]
[424879234,1781231440000,-500.0,0.00035616,18]
[424879240,1781231440000,-500.0,0.00035616,18]
[424879238,1781231440000,-500.0,0.00035616,18]
[424879241,1781231440000,-724.97,0.00035616,18]
[424879247,1781231440000,-500.0,0.00035616,18]
[424879249,1781231440000,-500.0,0.00035616,18]
[424879251,1781231440000,-500.0,0.00035616,18]
[424879245,1781231440000,-500.0,0.00035616,18]
[424879255,1781231440000,-1220.31,0.00035616,18]
[424879253,1781231440000,-500.0,0.00035616,18]
[424879258,1781231440000,-966.05,0.00035616,18]
[424879202,1781231440000,-1111.26,0.00035616,18]
[424879221,1781231440000,-500.0,0.00035616,18]
[424879189,1781231440000,-500.0,0.00035616,18]
[424879141,1781231440000,-161.3488754,0.00035416,2]
[424879204,1781231440000,-500.0,0.00035616,18]
[424879260,1781231440000,-500.0,0.00035616,18]
[424879143,1781231440000,-160.0,0.00035508,4]
[424879154,1781231440000,-12513.09528476,0.000356,60]
[424879145,1781231440000,-200.0,0.00035515,10]
[424879161,1781231440000,-500.0,0.00035616,18]
[424879147,1781231440000,-348.12703024,0.00035515,10]
[424879152,1781231440000,-1000.79,0.000356,30]
[424879149,1781231440000,-1910.80909711,0.00035516,2]
[424879150,1781231440000,-151.0,0.000356,18]
[424879156,1781231440000,-538.32,0.00035606,3]
[424879160,1781231440000,-500.0,0.00035616,18]
[424879158,1781231440000,-200.0,0.00035615,10]
[424879163,1781231440000,-558.13,0.00035616,18]
[424879165,1781231440000,-1269.5528,0.00035616,18]
[424879193,1781231440000,-500.0,0.00035616,18]
[424879178,1781231440000,-500.0,0.00035616,18]
[424879172,1781231440000,-678.69,0.00035616,18]
[424879167,1781231440000,-500.0,0.00035616,18]
[424879176,1781231440000,-292.99235652,0.00035616,18]
[424879180,1781231440000,-500.0,0.00035616,18]
[424879182,1781231440000,-500.0,0.00035616,18]
[424879184,1781231440000,-500.0,0.00035616,18]
[424879174,1781231440000,-500.0,0.00035616,18]
[424879171,1781231440000,-732.82,0.00035616,18]
[424879187,1781231440000,-807.9,0.00035616,18]
[424879186,1781231440000,-500.0,0.00035616,18]
[424879200,1781231440000,-500.0,0.00035616,18]
[424879195,1781231440000,-574.58,0.00035616,18]
[424879206,1781231440000,-500.0,0.00035616,18]
[424879191,1781231440000,-500.0,0.00035616,18]
[424879169,1781231440000,-500.0,0.00035616,18]
[424879262,1781231440000,-500.0,0.00035616,18]
[424879223,1781231440000,-500.0,0.00035616,18]
[424879275,1781231440000,-1979.47,0.00035616,18]
[424879331,1781231440000,-500.0,0.00035616,18]
[424879327,1781231440000,-571.19,0.00035616,18]
[424879329,1781231440000,-881.39,0.00035616,18]
[424879333,1781231440000,-632.15,0.00035616,18]
[424879336,1781231440000,-500.0,0.00035616,18]
[424879335,1781231440000,-1363.04,0.00035616,18]
[424879349,1781231440000,-500.0,0.00035616,18]
[424879352,1781231440000,-500.0,0.00035616,18]
[424879350,1781231440000,-500.0,0.00035616,18]
[424879354,1781231440000,-500.0,0.00035616,18]
[424879356,1781231440000,-500.0,0.00035616,18]
[424879361,1781231440000,-500.0,0.00035616,18]
[424879359,1781231440000,-500.0,0.00035616,18]
[424879358,1781231440000,-500.0,0.00035616,18]
[424879338,1781231440000,-500.0,0.00035616,18]
[424879340,1781231440000,-1287.24,0.00035616,18]
[424879344,1781231440000,-978.16,0.00035616,18]
[424879342,1781231440000,-500.0,0.00035616,18]
[424879347,1781231440000,-500.0,0.00035616,18]
[424879345,1781231440000,-500.70642669,0.00035616,18]
[424879363,1781231440000,-836.14,0.00035616,18]
[424879374,1781231440000,-500.0,0.00035616,18]
[424879376,1781231440000,-500.0,0.00035616,18]
[424879367,1781231440000,-505.44484142,0.00035616,18]
[424879380,1781231440000,-555.84,0.00035616,18]
[424879378,1781231440000,-500.0,0.00035616,18]
[424879381,1781231440000,-1014.47,0.00035616,18]
[424879365,1781231440000,-566.08153745,0.00035616,18]
[424879370,1781231440000,-500.0,0.00035616,18]
[424879324,1781231440000,-813.82,0.00035616,6]
[424879326,1781231440000,-500.0,0.00035616,18]
[424879368,1781231440000,-500.0,0.00035616,18]
[424879318,1781231440000,-500.0,0.00035616,18]
[424879322,1781231440000,-500.0,0.00035616,18]
[424879277,1781231440000,-151.0,0.00035616,7]
[424879266,1781231440000,-395.80503501,0.00035616,18]
[424879281,1781231440000,-500.0,0.00035616,18]
[424879279,1781231440000,-500.0,0.00035616,18]
[424879282,1781231440000,-521.3315575,0.00035616,18]
[424879270,1781231440000,-500.0,0.00035616,18]
[424879272,1781231440000,-500.0,0.00035616,18]
[424879284,1781231440000,-1407.18,0.00035616,18]
[424879268,1781231440000,-557.26,0.00035616,18]
[424879273,1781231440000,-485.39774417,0.00035616,18]
[424879288,1781231440000,-500.0,0.00035616,18]
[424879286,1781231440000,-500.0,0.00035616,18]
[424879300,1781231440000,-500.0,0.00035616,18]
[424879289,1781231440000,-500.0,0.00035616,18]
[424879264,1781231440000,-500.0,0.00035616,18]
[424879372,1781231440000,-500.0,0.00035616,18]
[424879299,1781231440000,-500.0,0.00035616,18]
[424879316,1781231440000,-500.0,0.00035616,18]
[424879320,1781231440000,-853.99,0.00035616,18]
[424879314,1781231440000,-728.83,0.00035616,18]
[424879313,1781231440000,-500.0,0.00035616,18]
[424879311,1781231440000,-500.0,0.00035616,18]
[424879309,1781231440000,-500.0,0.00035616,18]
[424879297,1781231440000,-2365.42,0.00035616,18]
[424879295,1781231440000,-500.0,0.00035616,18]
[424879293,1781231440000,-500.0,0.00035616,18]
[424879304,1781231440000,-500.0,0.00035616,18]
[424879302,1781231440000,-500.0,0.00035616,18]
[424879306,1781231440000,-500.0,0.00035616,18]
[424879291,1781231440000,-500.0,0.00035616,2]
[424879308,1781231440000,-500.03,0.00035616,18]
[424879454,1781231441000,-500.0,0.00035616,18]
[424879467,1781231441000,-151.0,0.00035616,7]
[424879461,1781231441000,-165.8688,0.00035616,2]
[424879459,1781231441000,-165.8688,0.00035616,2]
[424879445,1781231441000,-500.0,0.00035616,18]
[424879447,1781231441000,-3143.69,0.00035616,18]
[424879457,1781231441000,-165.8688,0.00035616,2]
[424879456,1781231441000,-165.8688,0.00035616,2]
[424879451,1781231441000,-500.0,0.00035616,18]
[424879443,1781231441000,-154.914325,0.00035616,7]
[424879440,1781231441000,-981.27,0.00035616,18]
[424879452,1781231441000,-663.12,0.00035616,18]
[424879463,1781231441000,-32026.49,0.00035616,18]
[424879476,1781231441000,-165.8688,0.00035616,2]
[424879469,1781231441000,-165.8688,0.00035616,2]
[424879471,1781231441000,-151.0,0.00035616,7]
[424879479,1781231441000,-165.8688,0.00035616,2]
[424879474,1781231441000,-151.0,0.00035616,7]
[424879472,1781231441000,-165.8688,0.00035616,2]
[424879441,1781231441000,-151.0,0.00035616,7]
[424879478,1781231441000,-151.0,0.00035616,7]
[424879481,1781231441000,-151.0,0.00035616,7]
[424879483,1781231441000,-151.0,0.00035616,7]
[424879484,1781231441000,-151.0,0.00035616,7]
[424879486,1781231441000,-220.850734,0.00035616,7]
[424879498,1781231441000,-2203.78,0.00035616,18]
[424879499,1781231441000,-500.0,0.00035616,2]
[424879490,1781231441000,-500.0,0.00035616,18]
[424879465,1781231441000,-567.02,0.00035616,18]
[424879449,1781231441000,-500.0,0.00035616,18]
[424879421,1781231441000,-647.18,0.00035616,18]
[424879436,1781231441000,-500.0,0.00035616,18]
[424879488,1781231441000,-500.0,0.00035616,18]
[424879385,1781231441000,-500.0,0.00035616,18]
[424879383,1781231441000,-866.16,0.00035616,18]
[424879398,1781231441000,-2993.01,0.00035616,18]
[424879399,1781231441000,-437.328203,0.00035616,7]
[424879401,1781231441000,-437.328203,0.00035616,7]
[424879387,1781231441000,-500.0,0.00035616,18]
[424879403,1781231441000,-437.328203,0.00035616,7]
[424879389,1781231441000,-500.0,0.00035616,18]
[424879405,1781231441000,-437.328203,0.00035616,7]
[424879406,1781231441000,-151.0,0.00035616,7]
[424879392,1781231441000,-716.83,0.00035616,18]
[424879394,1781231441000,-500.0,0.00035616,18]
[424879408,1781231441000,-151.0,0.00035616,7]
[424879410,1781231441000,-437.328203,0.00035616,7]
[424879391,1781231441000,-553.5,0.00035616,18]
[424879415,1781231441000,-1134.1,0.00035616,18]
[424879413,1781231441000,-437.328203,0.00035616,7]
[424879412,1781231441000,-437.328203,0.00035616,7]
[424879417,1781231441000,-437.328203,0.00035616,7]
[424879419,1781231441000,-708.56,0.00035616,18]
[424879429,1781231441000,-500.0,0.00035616,18]
[424879423,1781231441000,-151.0,0.00035616,7]
[424879424,1781231441000,-151.0,0.00035616,7]
[424879435,1781231441000,-618.55,0.00035616,18]
[424879426,1781231441000,-151.0,0.00035616,7]
[424879428,1781231441000,-245.337193,0.00035616,7]
[424879431,1781231441000,-1561.74,0.00035616,18]
[424879433,1781231441000,-500.0,0.00035616,18]
[424879438,1781231441000,-500.0,0.00035616,18]
[424879396,1781231441000,-500.0,0.00035616,18]
[424879496,1781231441000,-500.0,0.00035616,18]
[424879492,1781231441000,-500.0,0.00035616,18]
[424879561,1781231441000,-500.0,0.00035616,18]
[424879552,1781231441000,-500.0,0.00035616,18]
[424879557,1781231441000,-500.0,0.00035616,18]
[424879562,1781231441000,-500.0,0.00035616,18]
[424879560,1781231441000,-500.0,0.00035616,18]
[424879559,1781231441000,-2031.31,0.00035616,18]
[424879566,1781231441000,-3868.0,0.00035616,18]
[424879575,1781231441000,-2933.19,0.00035616,11]
[424879576,1781231441000,-517.83,0.00035616,18]
[424879567,1781231441000,-500.0,0.00035616,18]
[424879565,1781231441000,-500.0,0.00035616,18]
[424879571,1781231441000,-1194.23,0.00035616,18]
[424879574,1781231441000,-500.0,0.00035616,18]
[424879554,1781231441000,-500.0,0.00035616,18]
[424879568,1781231441000,-885.32,0.00035616,18]
[424879578,1781231441000,-500.0,0.00035616,18]
[424879569,1781231441000,-4870.13,0.00035616,18]
[424879573,1781231441000,-500.0,0.00035616,18]
[424879570,1781231441000,-500.0,0.00035616,18]
[424879579,1781231441000,-500.0,0.00035616,18]
[424879580,1781231441000,-500.0,0.00035616,2]
[424879581,1781231441000,-1708.55,0.00035616,18]
[424879585,1781231441000,-500.0,0.00035616,18]
[424879588,1781231441000,-1613.81,0.00035616,18]
[424879582,1781231441000,-1342.78,0.00035616,18]
[424879584,1781231441000,-644.78,0.00035616,18]
[424879587,1781231441000,-500.0,0.00035616,18]
[424879494,1781231441000,-5444.48,0.00035616,18]
[424879572,1781231441000,-687.74,0.00035616,18]
[424879558,1781231441000,-500.0,0.00035616,18]
[424879577,1781231441000,-523.72,0.00035616,18]
[424879555,1781231441000,-500.0,0.00035616,18]
[424879505,1781231441000,-1138.31,0.00035616,18]
[424879556,1781231441000,-728.51,0.00035616,18]
[424879507,1781231441000,-500.0,0.00035616,18]
[424879517,1781231441000,-500.0,0.00035616,18]
[424879511,1781231441000,-151.0,0.00035616,7]
[424879509,1781231441000,-151.0,0.00035616,7]
[424879515,1781231441000,-281.946861,0.00035616,7]
[424879513,1781231441000,-2485.13,0.00035616,18]
[424879519,1781231441000,-500.0,0.00035616,18]
[424879524,1781231441000,-500.0,0.00035616,18]
[424879522,1781231441000,-500.0,0.00035616,18]
[424879526,1781231441000,-1045.9,0.00035616,18]
[424879528,1781231441000,-500.0,0.00035616,18]
[424879542,1781231441000,-500.0,0.00035616,18]
[424879544,1781231441000,-500.0,0.00035616,18]
[424879520,1781231441000,-4131.71,0.00035616,18]
[424879563,1781231441000,-5137.44,0.00035616,18]
[424879564,1781231441000,-500.0,0.00035616,18]
[424879545,1781231441000,-500.0,0.00035616,18]
[424879553,1781231441000,-2024.84,0.00035616,18]
[424879540,1781231441000,-728.55,0.00035616,2]
[424879551,1781231441000,-2908.74,0.00035616,18]
[424879538,1781231441000,-151.0,0.00035616,7]
[424879550,1781231441000,-500.0,0.00035616,18]
[424879536,1781231441000,-500.0,0.00035616,18]
[424879534,1781231441000,-151.0,0.00035616,7]
[424879547,1781231441000,-1038.76,0.00035616,18]
[424879532,1781231441000,-500.0,0.00035616,18]
[424879530,1781231441000,-500.0,0.00035616,18]
[424879549,1781231441000,-500.0,0.00035616,18]
[424879670,1781231442000,-500.0,0.0003589,18]
[424879678,1781231442000,-500.0,0.0003589,18]
[424879676,1781231442000,-500.0,0.0003589,18]
[424879674,1781231442000,-807.9,0.0003589,18]
[424879672,1781231442000,-383.89572403,0.0003589,18]
[424879668,1781231442000,-500.0,0.0003589,18]
[424879656,1781231442000,-500.0,0.0003589,18]
[424879664,1781231442000,-500.0,0.0003589,18]
[424879652,1781231442000,-558.13,0.0003589,18]
[424879666,1781231442000,-500.0,0.0003589,18]
[424879654,1781231442000,-500.0,0.0003589,18]
[424879680,1781231442000,-500.0,0.0003589,18]
[424879658,1781231442000,-732.82,0.0003589,18]
[424879688,1781231442000,-500.0,0.0003589,18]
[424879712,1781231442000,-500.0,0.0003589,18]
[424879690,1781231442000,-1111.26,0.0003589,18]
[424879682,1781231442000,-574.58,0.0003589,18]
[424879692,1781231442000,-500.0,0.0003589,18]
[424879684,1781231442000,-500.0,0.0003589,18]
[424879700,1781231442000,-500.0,0.0003589,18]
[424879694,1781231442000,-500.0,0.0003589,18]
[424879698,1781231442000,-500.0,0.0003589,18]
[424879696,1781231442000,-500.0,0.0003589,18]
[424879702,1781231442000,-500.0,0.0003589,18]
[424879706,1781231442000,-500.0,0.0003589,18]
[424879704,1781231442000,-749.48,0.0003589,18]
[424879716,1781231442000,-500.0,0.0003589,18]
[424879708,1781231442000,-500.0,0.0003589,18]
[424879662,1781231442000,-500.0,0.0003589,18]
[424879686,1781231442000,-500.0,0.0003589,18]
[424879660,1781231442000,-678.69,0.0003589,18]
[424879593,1781231442000,-4780.510235,0.00035616,7]
[424879648,1781231442000,-500.0,0.0003589,18]
[424879591,1781231442000,-5500.81,0.00035616,18]
[424879596,1781231442000,-3338.79,0.00035616,18]
[424879594,1781231442000,-4780.510235,0.00035616,7]
[424879598,1781231442000,-4780.510235,0.00035616,7]
[424879714,1781231442000,-151.0,0.0003589,7]
[424879601,1781231442000,-4780.510235,0.00035616,7]
[424879603,1781231442000,-4780.510235,0.00035616,7]
[424879600,1781231442000,-500.0,0.00035616,18]
[424879607,1781231442000,-4780.510235,0.00035616,7]
[424879610,1781231442000,-500.0,0.00035616,18]
[424879614,1781231442000,-6094.36,0.00035616,18]
[424879605,1781231442000,-1411.07,0.00035616,18]
[424879612,1781231442000,-500.0,0.00035616,18]
[424879620,1781231442000,-500.0,0.00035616,18]
[424879590,1781231442000,-4780.510235,0.00035616,7]
[424879616,1781231442000,-665.06,0.00035616,18]
[424879622,1781231442000,-500.0,0.00035616,18]
[424879632,1781231442000,-500.0,0.00035616,18]
[424879624,1781231442000,-1323.25,0.00035616,18]
[424879638,1781231442000,-154.887444,0.0003579,7]
[424879628,1781231442000,-500.0,0.00035616,18]
[424879626,1781231442000,-500.0,0.00035616,18]
[424879636,1781231442000,-151.0,0.0003579,7]
[424879640,1781231442000,-151.0,0.000358,11]
[424879634,1781231442000,-285.249342,0.00035709,21]
[424879630,1781231442000,-500.0,0.00035616,18]
[424879646,1781231442000,-1262.5924,0.0003589,18]
[424879644,1781231442000,-500.0,0.0003589,18]
[424879642,1781231442000,-200.0,0.00035889,10]
[424879650,1781231442000,-500.0,0.0003589,18]
[424879720,1781231442000,-500.0,0.0003589,18]
[424879608,1781231442000,-4780.510235,0.00035616,7]
[424879718,1781231442000,-500.0,0.0003589,18]
[424879788,1781231442000,-500.0,0.0003589,18]
[424879801,1781231442000,-500.0,0.0003589,18]
[424879799,1781231442000,-500.03,0.0003589,18]
[424879790,1781231442000,-500.0,0.0003589,18]
[424879792,1781231442000,-500.0,0.0003589,18]
[424879784,1781231442000,-500.0,0.0003589,18]
[424879803,1781231442000,-500.0,0.0003589,18]
[424879807,1781231442000,-728.83,0.0003589,18]
[424879805,1781231442000,-500.0,0.0003589,18]
[424879810,1781231442000,-500.0,0.0003589,18]
[424879811,1781231442000,-500.0,0.0003589,18]
[424879822,1781231442000,-881.39,0.0003589,18]
[424879821,1781231442000,-571.19,0.0003589,18]
[424879813,1781231442000,-853.99,0.0003589,18]
[424879786,1781231442000,-2365.42,0.0003589,18]
[424879815,1781231442000,-500.0,0.0003589,18]
[424879828,1781231442000,-1363.04,0.0003589,18]
[424879817,1781231442000,-813.82,0.0003589,6]
[424879819,1781231442000,-500.0,0.0003589,18]
[424879824,1781231442000,-500.0,0.0003589,18]
[424879830,1781231442000,-500.0,0.0003589,18]
[424879831,1781231442000,-500.0,0.0003589,18]
[424879833,1781231442000,-1287.24,0.0003589,18]
[424879837,1781231442000,-978.16,0.0003589,18]
[424879835,1781231442000,-500.0,0.0003589,18]
[424879841,1781231442000,-500.0,0.0003589,18]
[424879839,1781231442000,-500.0,0.0003589,18]
[424879842,1781231442000,-500.0,0.0003589,18]
[424879844,1781231442000,-500.0,0.0003589,18]
[424879710,1781231442000,-500.0,0.0003589,18]
[424879826,1781231442000,-632.15,0.0003589,18]
[424879797,1781231442000,-500.0,0.0003589,18]
[424879618,1781231442000,-6410.85,0.00035616,18]
[424879782,1781231442000,-500.0,0.0003589,18]
[424879722,1781231442000,-500.0,0.0003589,18]
[424879724,1781231442000,-500.0,0.0003589,18]
[424879727,1781231442000,-500.0,0.0003589,18]
[424879729,1781231442000,-500.0,0.0003589,18]
[424879730,1781231442000,-367.39967788,0.0003589,18]
[424879732,1781231442000,-724.97,0.0003589,18]
[424879740,1781231442000,-500.0,0.0003589,18]
[424879744,1781231442000,-200.0,0.0003589,14]
[424879734,1781231442000,-500.0,0.0003589,18]
[424879746,1781231442000,-500.0,0.0003589,18]
[424879742,1781231442000,-500.0,0.0003589,18]
[424879736,1781231442000,-500.0,0.0003589,18]
[424879750,1781231442000,-625.23,0.0003589,18]
[424879738,1781231442000,-500.0,0.0003589,18]
[424879748,1781231442000,-1220.31,0.0003589,18]
[424879794,1781231442000,-500.0,0.0003589,18]
[424879754,1781231442000,-500.0,0.0003589,18]
[424879780,1781231442000,-500.0,0.0003589,2]
[424879774,1781231442000,-500.0,0.0003589,18]
[424879768,1781231442000,-500.0,0.0003589,18]
[424879772,1781231442000,-1407.18,0.0003589,18]
[424879752,1781231442000,-966.05,0.0003589,18]
[424879778,1781231442000,-500.0,0.0003589,18]
[424879770,1781231442000,-500.0,0.0003589,18]
[424879764,1781231442000,-500.0,0.0003589,18]
[424879766,1781231442000,-1979.47,0.0003589,18]
[424879762,1781231442000,-207.44820993,0.0003589,18]
[424879760,1781231442000,-557.26,0.0003589,18]
[424879758,1781231442000,-500.0,0.0003589,18]
[424879756,1781231442000,-500.0,0.0003589,18]
[424879776,1781231442000,-500.0,0.0003589,18]
[424879932,1781231443000,-561.6862664,0.0003589,18]
[424879930,1781231443000,-618.55,0.0003589,18]
[424879914,1781231443000,-708.56,0.0003589,18]
[424879918,1781231443000,-151.0,0.0003589,7]
[424879928,1781231443000,-500.0,0.0003589,18]
[424879920,1781231443000,-151.0,0.0003589,7]
[424879908,1781231443000,-437.328203,0.0003589,7]
[424879924,1781231443000,-500.0,0.0003589,18]
[424879926,1781231443000,-1561.74,0.0003589,18]
[424879912,1781231443000,-437.328207,0.0003589,7]
[424879922,1781231443000,-151.0,0.0003589,7]
[424879916,1781231443000,-647.18,0.0003589,18]
[424879910,1781231443000,-437.328203,0.0003589,7]
[424879936,1781231443000,-981.27,0.0003589,18]
[424879953,1781231443000,-165.8688,0.0003589,2]
[424879934,1781231443000,-500.0,0.0003589,18]
[424879949,1781231443000,-500.0,0.0003589,18]
[424879942,1781231443000,-500.0,0.0003589,18]
[424879951,1781231443000,-165.8688,0.0003589,2]
[424879940,1781231443000,-3143.69,0.0003589,18]
[424879938,1781231443000,-500.0,0.0003589,18]
[424879955,1781231443000,-165.8688,0.0003589,2]
[424879959,1781231443000,-165.8688,0.0003589,2]
[424879957,1781231443000,-165.8688,0.0003589,2]
[424879961,1781231443000,-32026.49,0.0003589,18]
[424879972,1781231443000,-165.8688,0.0003589,2]
[424879974,1781231443000,-151.0,0.0003589,7]
[424879963,1781231443000,-567.02,0.0003589,18]
[424879907,1781231443000,-1134.1,0.0003589,18]
[424879946,1781231443000,-663.12,0.0003589,18]
[424879905,1781231443000,-437.328203,0.0003589,7]
[424879877,1781231443000,-500.0,0.0003589,18]
[424879897,1781231443000,-437.328203,0.0003589,7]
[424879846,1781231443000,-500.0,0.0003589,18]
[424879848,1781231443000,-500.0,0.0003589,18]
[424879850,1781231443000,-500.0,0.0003589,18]
[424879853,1781231443000,-500.0,0.0003589,18]
[424879852,1781231443000,-500.0,0.0003589,18]
[424879855,1781231443000,-836.14,0.0003589,18]
[424879857,1781231443000,-500.0,0.0003589,18]
[424879861,1781231443000,-500.0,0.0003589,18]
[424879859,1781231443000,-500.0,0.0003589,18]
[424879862,1781231443000,-500.0,0.0003589,18]
[424879864,1781231443000,-500.0,0.0003589,18]
[424879873,1781231443000,-500.0,0.0003589,18]
[424879875,1781231443000,-500.0,0.0003589,18]
[424879870,1781231443000,-1014.47,0.0003589,18]
[424879895,1781231443000,-437.328203,0.0003589,7]
[424879872,1781231443000,-866.16,0.0003589,18]
[424879968,1781231443000,-165.8688,0.0003589,2]
[424879866,1781231443000,-500.0,0.0003589,18]
[424879868,1781231443000,-555.84,0.0003589,18]
[424879883,1781231443000,-500.0,0.0003589,18]
[424879881,1781231443000,-716.83,0.0003589,18]
[424879884,1781231443000,-614.80379306,0.0003589,18]
[424879886,1781231443000,-2993.01,0.0003589,18]
[424879888,1781231443000,-437.328203,0.0003589,7]
[424879892,1781231443000,-437.328203,0.0003589,7]
[424879894,1781231443000,-437.328203,0.0003589,7]
[424879890,1781231443000,-437.328203,0.0003589,7]
[424879899,1781231443000,-151.000236,0.0003589,7]
[424879901,1781231443000,-437.328203,0.0003589,7]
[424879903,1781231443000,-437.328203,0.0003589,7]
[424879879,1781231443000,-553.5,0.0003589,18]
[424879976,1781231443000,-165.8688,0.0003589,2]
[424879944,1781231443000,-500.0,0.0003589,18]
[424879965,1781231443000,-165.8688,0.0003589,2]
[424880036,1781231443000,-165.777928,0.0003589,7]
[424880047,1781231443000,-500.0,0.0003589,18]
[424880044,1781231443000,-500.0,0.0003589,18]
[424880051,1781231443000,-2908.74,0.0003589,18]
[424880045,1781231443000,-1038.76,0.0003589,18]
[424880056,1781231443000,-500.0,0.0003589,18]
[424880060,1781231443000,-728.51,0.0003589,18]
[424880040,1781231443000,-500.0,0.0003589,18]
[424880054,1781231443000,-2024.84,0.0003589,18]
[424880038,1781231443000,-728.55,0.0003589,2]
[424880058,1781231443000,-500.0,0.0003589,18]
[424880052,1781231443000,-500.0,0.0003589,18]
[424880042,1781231443000,-500.0,0.0003589,18]
[424880062,1781231443000,-500.0,0.0003589,18]
[424880049,1781231443000,-500.0,0.0003589,18]
[424880074,1781231443000,-500.0,0.0003589,18]
[424880076,1781231443000,-500.0,0.0003589,18]
[424880065,1781231443000,-2031.31,0.0003589,18]
[424880067,1781231443000,-500.0,0.0003589,18]